[Event "Czech Championship 2024"]
[Site "Ostrava"]
[Date "2024.04.28"]
[Round "2.2"]
[White "Stocek, Jiri"]
[Black "Finek, Vaclav"]
[Result "1/2-1/2"]
[ECO "D03"]
[WhiteElo "2531"]
[BlackElo "2431"]
[Annotator "TA"]
[PlyCount "175"]
[EventDate "2024.04.25"]
[EventType "tourn"]
[EventCountry "CZE"]
[SourceTitle "playchess.com"]
[Source "ChessBase"]
[SourceQuality "1"]
[TimeControl "40/5400+30:1800+30"]

{[%evp 79,175,134,138,142,155,127,169,149,132,131,194,176,176,143,265,283,260,212,255,267,286,284,344,353,371,379,366,289,286,295,299,295,378,376,368,321,611,615,582,579,475,322,380,362,305,291,302,297,297,317,263,0,252,0,262,262,302,295,319,291,319,0,16,0,319,319,319,319,319,39,319,318,318,318,318,310,285,285,270,88,88,57,1012,0,0,0,0,0,0,0,0,0,0,0,0,0,0,0]} 1. d4 {[%emt 0:00:09]} d5 {[%emt 0:00:05]} 2. Nf3 {[%emt 0:00:17]} Nf6 {[%emt 0:00:08]} 3. Bg5 {[%emt 0:00:30]} Ne4 {[%emt 0:00:18]} 4. Bh4 {[%emt 0:00:24]} c5 {[%emt 0:07:03]} 5. e3 {[%emt 0:00:50]} Nc6 {[%emt 0:01:29]} 6. Nbd2 {[%emt 0:03:47] D03: 1 d4 d5 2 Nf3 Nf6 3 Bg5, including Torre Attack with early ...d5.} Bg4 {[%emt 0:13:28]} 7. Be2 {[%emt 0:10:01]} Nxd2 {[%emt 0:02:57]} 8. Qxd2 {[%emt 0:01:53]} cxd4 {[%emt 0:00:20]} 9. Nxd4 $146 {[%emt 0:08:14]} ({Predecessor:} 9. exd4 Qb6 10. c3 e6 11. O-O Bxf3 12. Bxf3 Be7 13. Bg3 O-O 14. Be2 Rad8 15. Bd3 {½-½ Abdusattorov,N (2725)-So,W (2769) Aimchess Rapid Div 1 W 2023 (1.1)}) 9... Bxe2 {[%emt 0:00:43]} 10. Qxe2 {[%emt 0:02:21]} Qb6 {[%emt 0:04:29]} 11. O-O {[%emt 0:09:08]} e6 {[%emt 0:05:58]} 12. c4 {[%emt 0:09:06]} Be7 {[%emt 0:08:56]} 13. Nxc6 {[%emt 0:07:21]} Bxh4 {[%emt 0:02:32]} 14. Ne5 {[%emt 0:05:04]} Bf6 {[%emt 0:04:10]} 15. Ng4 {[%emt 0:01:04]} dxc4 {[%emt 0:10:02]} 16. Nxf6+ {[%emt 0:00:45]} gxf6 {[%emt 0:00:05]} 17. Qxc4 {[%emt 0:02:13]} Ke7 {[%emt 0:03:37]} 18. Rac1 {[%emt 0:06:22]} Rhd8 {[%emt 0:01:33]} 19. Rc3 {[%emt 0:05:29]} Rd7 {[%emt 0:03:07]} 20. Rb3 {[%emt 0:02:07]} Qd6 {[%emt 0:04:22]} 21. Qe4 {[%emt 0:01:31]} Qa6 {[%emt 0:01:42]} 22. Qb4+ {[%emt 0:04:17]} Ke8 {[%emt 0:00:57]} 23. Qg4 {[%emt 0:02:40]} Ke7 {[%emt 0:02:16]} 24. a4 {[%emt 0:00:21]} Rc8 {[%emt 0:01:39]} 25. Rb5 {[%emt 0:00:34]} Qc6 {[%emt 0:01:49]} 26. Qb4+ {[%emt 0:01:10]} Ke8 {[%emt 0:00:57]} 27. h3 {[%emt 0:01:51]} Rcd8 {[%emt 0:09:26]} 28. Rc5 {[%emt 0:06:32]} Qd6 {[%emt 0:01:12]} 29. Qc3 {[%emt 0:01:13]} Ke7 {[%emt 0:00:08]} 30. Rc1 {[%emt 0:00:45]} Qd3 {[%emt 0:04:20]} 31. Qb4 {[%emt 0:00:38]} Qd6 {[%emt 0:00:15]} 32. Qh4 {[%emt 0:00:53]} b6 {[%emt 0:01:15]} 33. Rc6 {[%emt 0:02:02]} Qe5 {[%emt 0:01:16]} 34. Qb4+ {[%emt 0:01:08]} Ke8 {[%emt 0:00:06]} 35. Rc8 {[%emt 0:01:20]} Qd6 {[%emt 0:02:06]} 36. Qh4 {[%emt 0:01:51]} Rxc8 {[%emt 0:02:08]} 37. Rxc8+ {[%emt 0:00:06]} Ke7 {[%emt 0:00:40]} 38. Qxh7 {[%emt 0:00:45]} Qe5 {[%emt 0:01:12]} 39. Qc2 {[%emt 0:00:37]} f5 {[%emt 0:00:03]} 40. Rc4 {[%emt 0:01:29]} Kf6 {[%emt 0:00:29]} 41. g3 {[%emt 0:02:17]} Ke7 {[%emt 0:02:48]} 42. Qe2 {[%emt 0:04:15]} Qf6 {[%emt 0:01:27]} 43. Rc2 {[%emt 0:03:47]} Qe5 {[%emt 0:00:22]} 44. Rd2 {[%emt 0:02:27]} Rc7 {[%emt 0:05:01]} (44... Rxd2 $16 45. Qxd2 Qc5) 45. Rd1 {[%emt 0:01:55]} Kf8 {[%emt 0:02:14]} 46. Qd2 {[%emt 0:03:37]} Kg7 {[%emt 0:04:20]} (46... Rc8 $16 {might work better.} 47. Qd7 Qc7 48. Qxc7 Rxc7) 47. Qd8 $18 {[%emt 0:02:06]} Kg6 {[%emt 0:00:27]} 48. h4 {[%emt 0:01:49]} Kh7 {[%emt 0:00:37]} 49. b4 {[%emt 0:02:58]} Qc3 {[%emt 0:02:05]} 50. b5 {[%emt 0:02:34]} Qc2 {[%emt 0:01:21]} 51. Rd4 $1 {[%emt 0:02:38]} e5 {[%emt 0:04:11]} 52. Rd2 {[%emt 0:01:28]} Qb1+ {[%emt 0:01:16]} 53. Rd1 {[%emt 0:00:04]} Qc2 {[%emt 0:01:45]} 54. Re1 {[%emt 0:01:33]} Qc3 {[%emt 0:00:31]} 55. Kg2 {[%emt 0:01:22]} f4 {[%emt 0:03:06]} 56. exf4 {[%emt 0:00:28]} exf4 {[%emt 0:00:17]} 57. gxf4 {[%emt 0:00:36]} Qxe1 $2 {[%emt 0:01:15]} (57... Rc8 58. Qe7 (58. Re3 Qxe3 59. Qxc8 Qxf4 $11) 58... Qg7+ 59. Qg5 Rc7) 58. Qxc7 $18 {[%emt 0:00:04]} Qe4+ {[%emt 0:00:24]} 59. Kh2 {[%emt 0:00:28]} Qf5 {[%emt 0:00:58]} 60. Qe5 {[%emt 0:00:17]} ({Weaker is} 60. Qxa7 Qxf4+ 61. Kg1 Qg4+ 62. Kf1 Qd1+ 63. Kg2 Qg4+ 64. Kf1 Qd1+ 65. Kg2 Qg4+ 66. Kf1 $11) 60... Qc2 {[%emt 0:00:11]} 61. Qd4 {[%emt 0:00:50]} Qf5 {[%emt 0:00:24]} 62. f3 {[%emt 0:01:01]} Qc2+ {[%emt 0:00:10]} 63. Kg3 {[%emt 0:00:28]} Qg6+ {[%emt 0:01:28]} 64. Kf2 {[%emt 0:00:05]} Qc2+ {[%emt 0:00:04]} 65. Kg3 {[%emt 0:00:05]} Qg6+ {[%emt 0:00:17]} 66. Kf2 {[%emt 0:00:01]} Qc2+ {[%emt 0:00:09]} 67. Kf1 {[%emt 0:02:37]} Qc1+ {[%emt 0:02:14]} 68. Ke2 {[%emt 0:00:56]} Qc2+ {[%emt 0:00:05]} 69. Ke3 {[%emt 0:00:05]} Qc1+ {[%emt 0:00:33]} 70. Ke2 $2 {[%emt 0:00:10]} (70. Ke4 $1 $18 {[%cal Re4e5]}) 70... Qc2+ $1 $11 {[%emt 0:00:07]} 71. Ke3 $2 {[%emt 0:00:07][%mdl 8192]} (71. Qd2 $11 Qxa4 72. Qd5) 71... Qc1+ $1 $18 {[%emt 0:00:08]} 72. Ke4 $1 {[%emt 0:02:10]} Qe1+ {[%emt 0:02:36]} 73. Qe3 {[%emt 0:00:08]} Qxh4 {[%emt 0:00:58] [#]} 74. Kf5 $2 {[%emt 0:00:39]} (74. Qd3 $1 $18) 74... Kg8 $2 {[%emt 0:02:20][%mdl 8192]} (74... Qd8 $14) 75. Qe8+ $18 {[%emt 0:00:39]} Kg7 {[%emt 0:00:08]} 76. Qe5+ {[%emt 0:00:28]} Kg8 {[%emt 0:00:19]} 77. Qb8+ {[%emt 0:01:18]} Kg7 {[%emt 0:00:18]} 78. Qd6 {[%emt 0:00:36]} ({And not} 78. Qxa7 Qh3+ 79. Ke5 Qe6+ 80. Kd4 Qd6+ 81. Ke3 Qc5+ 82. Kd3 Qa3+ 83. Ke2 Qb2+ 84. Kf1 Qc1+ 85. Ke2 Qb2+ 86. Ke3 Qc3+ 87. Kf2 Qd2+ 88. Kf1 Qd3+ 89. Kf2 Qd2+ 90. Kg3 Qe1+ 91. Kg2 (91. Kg4 Qg1+ 92. Kf5 Qc5+ 93. Ke4 Qc4+ 94. Ke3 Qc3+ 95. Kf2 Qd2+ $11) 91... Qe2+ 92. Kg1 Qxf3 $11) 78... Qh7+ {[%emt 0:02:17] [#]} 79. Kg5 $2 {[%emt 0:00:16]} (79. Ke5 $1 $18) 79... Qh2 $16 {[%emt 0:00:56]} 80. Qd4+ {[%emt 0:00:47]} Kh7 $2 {[%emt 0:00:28][%mdl 8192]} (80... Kf8 $14) 81. f5 $2 {[%emt 0:01:05]} (81. Kf6 $18 {Qe4+ would kill now.} Kg8 82. Ke7 Qh4+ 83. Kd7) 81... Qg3+ $11 {[%emt 0:00:25]} 82. Qg4 {[%emt 0:00:08]} f6+ {[%emt 0:00:32]} 83. Kh5 {[%emt 0:01:11]} (83. Kxf6 $5 Qd6+ $8 84. Kf7 Qd7+ 85. Kf8 Qd8+ 86. Kf7 Qd7+ 87. Kf6 Qd6+ 88. Kf7 Qd7+ $11) 83... Qh2+ {[%emt 0:00:02]} 84. Qh4 {[%emt 0:00:05]} Qg2 $1 {[%emt 0:00:35]} 85. Qxf6 {[%emt 0:00:43]} Qh3+ {[%emt 0:00:23]} 86. Kg5 {[%emt 0:00:30]} Qg3+ {[%emt 0:00:05]} 87. Kh5 {[%emt 0:00:04]} Qh3+ {[%emt 0:00:08]} 88. Kg5 {[%emt 0:00:02]} 1/2-1/2

[Event "Czech Championship 2024"]
[Site "Ostrava"]
[Date "2024.04.28"]
[Round "2.3"]
[White "Kraus, Tomas"]
[Black "Stalmach, Richard"]
[Result "1-0"]
[ECO "E97"]
[WhiteElo "2488"]
[BlackElo "2446"]
[Annotator "TA"]
[PlyCount "71"]
[EventDate "2024.04.25"]
[EventType "tourn"]
[EventCountry "CZE"]
[SourceTitle "playchess.com"]
[Source "ChessBase"]
[SourceQuality "1"]
[TimeControl "40/5400+30:1800+30"]

{[%evp 23,71,29,42,12,60,68,76,78,104,91,94,99,117,122,231,218,321,210,222,217,189,173,163,165,156,167,164,161,168,107,150,138,339,345,414,452,462,454,447,419,423,318,504,318,29981,29982,29986,967,12833,7293]} 1. c4 {[%emt 0:00:03]} Nf6 {[%emt 0:01:25]} 2. Nf3 {[%emt 0:01:17]} g6 {[%emt 0:01:20]} 3. Nc3 {[%emt 0:01:13]} Bg7 {[%emt 0:00:37]} 4. d4 {[%emt 0:01:22]} d6 {[%emt 0:00:22]} 5. e4 {[%emt 0:01:35]} O-O {[%emt 0:00:10]} 6. Be2 {[%emt 0:00:51]} e5 {[%emt 0:00:33]} 7. O-O {[%emt 0:00:58]} Nc6 {[%emt 0:00:18]} 8. d5 {[%emt 0:00:17]} Ne7 {[%emt 0:00:04]} 9. b4 {[%emt 0:00:20]} a5 {[%emt 0:00:20]} 10. Ba3 {[%emt 0:00:26]} axb4 {[%emt 0:00:10]} 11. Bxb4 {[%emt 0:00:09]} b6 {[%emt 0:00:06]} 12. a4 {[%emt 0:00:59]} Ne8 {[%emt 0:00:43]} 13. h3 {[%emt 0:00:54]} h5 {[%emt 0:06:13]} (13... f5 $11) 14. Re1 $14 {[%emt 0:07:38]} Bh6 {[%emt 0:03:38]} 15. Bf1 {[%emt 0:14:52] White is better.} Bd7 {[%emt 0:29:48]} 16. a5 {[%emt 0:10:46]} bxa5 {[%emt 0:00:10]} 17. Bxa5 {[%emt 0:01:32]} f5 {[%emt 0:00:30]} 18. c5 {[%emt 0:05:50][%cal Bc4c5,Bc5d6][%mdl 32]} Qb8 {[%emt 0:08:19]} (18... Bg7 $16) 19. Bxc7 $18 {[%emt 0:06:32]} Nxc7 {[%emt 0:14:07]} (19... Qxc7 $142 20. Rxa8 Qxc5) 20. cxd6 {[%emt 0:02:41]} Rxa1 {[%emt 0:00:05]} 21. Qxa1 {[%emt 0:17:50]} Ncxd5 {[%emt 0:00:32]} 22. exd5 {[%emt 0:03:32]} Qxd6 {[%emt 0:00:07]} 23. Nxe5 {[%emt 0:00:05] aiming for Qa7.} Bg7 {[%emt 0:00:03]} 24. Nxd7 {[%emt 0:01:37]} Qxd7 {[%emt 0:01:43] [#]} 25. Qa3 $1 {[%emt 0:00:14]} Nc8 {[%emt 0:01:06]} 26. Re6 {[%emt 0:03:10] Black is weak on the light squares} ({White should try} 26. Qc5 $18) 26... Kh7 {[%emt 0:00:35]} 27. Ne2 $36 {[%emt 0:05:25][%mdl 2048] White has strong initiative. White is more active.} f4 $2 {[%emt 0:02:19] This costs Black the game.} (27... Rf6 $16 {is a better defense.}) 28. Qd3 {[%emt 0:01:45]} Rf5 {[%emt 0:05:46][%cal Oc8e7] [#]} 29. Nxf4 $1 {[%emt 0:01:26][%mdl 512]} Rxf4 {[%emt 0:00:04]} 30. Qxg6+ {[%emt 0:00:26]} Kg8 {[%emt 0:00:03]} 31. d6 {[%emt 0:03:01] Against Ne7} (31. Qxh5 Rf6 $14) 31... Kf8 {[%emt 0:04:07] Prevents Re8+} 32. Bd3 {[%emt 0:04:33][%cal Od3f5] And now Bf5! would win.} Rf7 {[%emt 0:02:54]} (32... Qf7 {might work better.} 33. Qxf7+ (33. d7 Qxd7 34. Re1 h4 $11) 33... Rxf7) 33. Bc4 {[%emt 0:01:04]} Qa4 $2 {[%emt 0:04:38]} (33... Nb6 $18) 34. Re1 {[%emt 0:01:50][%csl Gc4][%cal Rg6f7]} Rf6 {[%emt 0:00:46]} 35. Qe4 {[%emt 0:00:49]} ({Worse is} 35. Qxh5 Nxd6 36. Bd3 Qa2 $11) (35. Qh7 $142 Rf7 36. Bxf7 Kxf7 37. Qxh5+ Kf6 38. Qf3+ (38. Qe5+ Kg6 39. Qe6+ Bf6 40. d7 Qxd7 41. Qxd7 Nb6 42. Qe6 Nd5 43. Qxd5 Kh6) 38... Kg5 39. Qd5+ Kg6 40. Qd3+ (40. Qe6+ Bf6 41. d7 Qxd7 42. Qxd7 Nb6 43. Qe6 Nd5 44. Qxd5 Kg7 45. Qb7+ Kh6) 40... Kg5 41. d7 (41. Qd5+ Kg6 42. d7 Ne7 43. Qe6+ Kh7 44. d8=Q Qh4 45. Qdxe7 Qh5)) 35... Qd7 {[%emt 0:07:42]} 36. Qd5 {[%emt 0:00:38] Weighted Error Value: White=0.22 (precise) /Black=0.56.  Loses game:     	---       	Black=1      Mistake:       	White=1     	Black=5      Inaccurate:     	White=1     	Black=2      OK:         	White=10    	Black=6      Best:        	White=3     	Black=2      Brilliant:      	White=1     	---} 1-0

[Event "Czech Championship 2024"]
[Site "Ostrava"]
[Date "2024.04.28"]
[Round "2.4"]
[White "Navara, David"]
[Black "Nemec, Jachym"]
[Result "1-0"]
[ECO "B30"]
[WhiteElo "2678"]
[BlackElo "2416"]
[Annotator "RC"]
[PlyCount "63"]
[EventDate "2024.04.25"]
[EventType "tourn"]
[EventCountry "CZE"]
[SourceTitle "playchess.com"]
[Source "ChessBase"]
[SourceQuality "1"]
[TimeControl "40/5400+30:1800+30"]

1. e4 {[%emt 0:00:01]} c5 {[%emt 0:00:15]} 2. Nf3 {[%emt 0:00:05]} Nc6 {[%emt 0:00:20]} 3. Bb5 {[%emt 0:00:05]} e6 {[%emt 0:00:41]} 4. O-O {[%emt 0:01:35]} Nge7 {[%emt 0:00:28]} 5. Re1 {[%emt 0:00:26]} Nd4 {[%emt 0:01:46]} 6. Nxd4 {[%emt 0:02:54]} cxd4 {[%emt 0:00:06]} 7. c3 {[%emt 0:01:35]} a6 {[%emt 0:00:20]} 8. Bf1 {[%emt 0:00:18]} Nc6 {[%emt 0:00:21]} 9. b4 {[%emt 0:02:38]} Bd6 {[%emt 0:00:42]} 10. a4 {[%emt 0:01:38]} O-O {[%emt 0:06:50]} 11. Na3 {[%emt 0:05:05]} dxc3 {[%emt 0:13:10]} 12. dxc3 {[%emt 0:00:23]} Be5 {[%emt 0:01:14]} 13. Bd2 {[%emt 0:15:00]} Bf6 {[%emt 0:09:41]} 14. Rc1 {[%emt 0:13:15]} d5 {[%emt 0:05:16]} 15. a5 {[%emt 0:04:13]} Re8 {[%emt 0:10:02]} 16. Be3 {[%emt 0:06:11]} d4 {[%emt 0:23:06]} 17. cxd4 {[%emt 0:00:19]} Nxb4 {[%emt 0:00:32]} 18. Nc4 {[%emt 0:03:43]} Nc6 {[%emt 0:07:37]} 19. d5 {[%emt 0:03:54]} exd5 {[%emt 0:00:44]} 20. exd5 {[%emt 0:00:39]} Ne5 {[%emt 0:02:55]} 21. Bb6 {[%emt 0:05:02]} Qd7 {[%emt 0:01:08]} 22. d6 {[%emt 0:08:06]} Nxc4 {[%emt 0:08:19]} 23. Bxc4 {[%emt 0:00:40]} Rxe1+ {[%emt 0:00:42]} 24. Qxe1 {[%emt 0:00:06]} g6 {[%emt 0:00:40]} 25. Bd5 {[%emt 0:05:29]} Qxd6 {[%emt 0:02:22]} 26. Qe8+ {[%emt 0:00:08]} Qf8 {[%emt 0:00:08]} 27. Bxf7+ {[%emt 0:00:06]} Kg7 {[%emt 0:00:08]} 28. Bxg6 {[%emt 0:01:05]} Qxe8 {[%emt 0:01:17]} 29. Bxe8 {[%emt 0:00:07]} Be6 {[%emt 0:00:32]} 30. Rc7+ {[%emt 0:01:41]} Kg8 {[%emt 0:00:06]} 31. Bd7 {[%emt 0:01:37]} Bd5 {[%emt 0:00:50]} 32. Bc8 {[%emt 0:04:08]} 1-0

[Event "Czech Championship 2024"]
[Site "Ostrava"]
[Date "2024.04.28"]
[Round "2.5"]
[White "Simacek, Pavel"]
[Black "Neuman, Petr"]
[Result "1-0"]
[ECO "E72"]
[WhiteElo "2446"]
[BlackElo "2429"]
[Annotator "TA"]
[PlyCount "101"]
[EventDate "2024.04.25"]
[EventType "tourn"]
[EventCountry "CZE"]
[SourceTitle "playchess.com"]
[Source "ChessBase"]
[SourceQuality "1"]
[TimeControl "40/5400+30:1800+30"]

{[%evp 21,101,87,89,44,37,43,40,40,73,58,71,68,85,90,65,84,108,0,0,-19,-20,-14,-8,-14,10,16,15,15,12,14,56,59,48,72,64,54,94,99,100,102,98,114,116,59,144,146,149,147,128,23,24,40,71,8,8,0,0,0,24,25,179,179,193,186,207,207,206,149,419,404,387,150,714,411,925,866,853,853,776,125,744,418]} 1. d4 {[%emt 0:00:07]} Nf6 {[%emt 0:00:09]} 2. c4 {[%emt 0:00:08]} d6 {[%emt 0:00:26]} 3. Nc3 {[%emt 0:00:49]} Nbd7 {[%emt 0:00:42]} 4. e4 {[%emt 0:01:40]} e5 {[%emt 0:01:49]} 5. Nge2 {[%emt 0:11:24]} g6 {[%emt 0:04:44]} 6. g3 {[%emt 0:00:33]} Bg7 {[%emt 0:03:04]} 7. Bg2 {[%emt 0:00:06]} O-O {[%emt 0:00:06]} 8. O-O {[%emt 0:01:01]} c6 {[%emt 0:00:14]} 9. b3 {[%emt 0:01:53]} Re8 {[%emt 0:01:30]} 10. d5 {[%emt 0:04:59] E72: King's Indian: 4 e4 d6 5 g3.} c5 {[%emt 0:06:54]} 11. Bd2 $146 {[%emt 0:06:11]} ({Predecessor:} 11. Bb2 Nf8 12. Nc1 Bd7 13. Nd3 a6 14. Qd2 Qc8 15. f4 exf4 16. gxf4 Ng4 17. Rae1 Bd4+ {0-1 Padeiro,J (2121)-Antolak,J (2281) Figueira da Foz op 17th 2023 (8)}) 11... h5 {[%emt 0:03:21]} 12. f4 {[%emt 0:05:36]} exf4 {[%emt 0:21:49]} 13. gxf4 {[%emt 0:00:37]} Nf8 {[%emt 0:00:20]} 14. Qc2 {[%emt 0:18:32]} N6h7 {[%emt 0:07:36]} 15. Rae1 {[%emt 0:00:12]} a6 {[%emt 0:04:19]} 16. a4 {[%emt 0:02:29]} b6 {[%emt 0:06:19]} 17. Kh1 {[%emt 0:04:19]} Ra7 {[%emt 0:00:18]} 18. Ng1 {[%emt 0:02:07]} f5 {[%emt 0:01:49]} 19. Nf3 {[%emt 0:13:05]} (19. Bh3 $1 $16) 19... fxe4 $1 $11 {[%emt 0:06:50]} 20. Ng5 {[%emt 0:00:18]} e3 {[%emt 0:10:06]} 21. Rxe3 {[%emt 0:01:45]} Rxe3 {[%emt 0:00:17]} 22. Bxe3 {[%emt 0:00:03]} Bf5 {[%emt 0:00:47]} 23. Be4 {[%emt 0:04:28]} Qf6 {[%emt 0:00:41]} 24. Bd2 {[%emt 0:06:47]} (24. Bxf5 {simplifies} Qxf5 25. Qxf5 gxf5 26. Bd2) 24... Nxg5 $1 {[%emt 0:15:11]} 25. Bxf5 $1 {[%emt 0:00:10]} Nf3 {[%emt 0:00:04]} (25... Qxf5 {simplifies} 26. Qxf5 gxf5 27. fxg5 Re7) 26. Rxf3 {[%emt 0:01:30]} Qxf5 {[%emt 0:00:22]} 27. Qxf5 {[%emt 0:01:57]} gxf5 {[%emt 0:00:01]} 28. Rh3 {[%emt 0:00:12]} Kf7 {[%emt 0:03:46]} 29. Rxh5 {[%emt 0:00:16]} Bf6 {[%emt 0:00:05]} 30. Kg2 {[%emt 0:03:25]} Kg6 {[%emt 0:00:47]} 31. Rh3 {[%emt 0:00:05]} Re7 {[%emt 0:00:25]} 32. Kf3 {[%emt 0:00:43]} (32. Kf1 $16) 32... Nd7 {[%emt 0:00:33]} (32... Re8 $1 $14) 33. Rg3+ $1 $16 {[%emt 0:03:06]} Kf7 {[%emt 0:00:01]} 34. Nd1 $1 {[%emt 0:00:08]} Bd4 {[%emt 0:00:42]} 35. Ne3 {[%emt 0:00:57]} ({Better is} 35. Rg5 $1 $16) 35... Bxe3 $11 {[%emt 0:00:10]} 36. Bxe3 {[%emt 0:00:04]} b5 {[%emt 0:00:08]} 37. axb5 {[%emt 0:05:11]} (37. cxb5 $16 axb5 38. Rg5 (38. axb5 Nf6 $11)) 37... axb5 $11 {[%emt 0:00:01]} 38. cxb5 {[%emt 0:00:06]} Nf6 {[%emt 0:00:21]} 39. Rg5 {[%emt 0:00:30]} Rb7 {[%emt 0:00:56]} 40. b4 {[%emt 0:02:21]} (40. Rxf5 Rxb5 41. h4 Rxb3 $15) 40... Rxb5 $2 {[%emt 0:01:45]} (40... cxb4 $11 41. b6 (41. Rxf5 Rxb5 42. Bd4 Rxd5 $11) 41... Nxd5) 41. bxc5 $18 {[%emt 0:05:54]} (41. Rxf5 Rxb4 42. Ke2 Rb2+ 43. Bd2 c4 $11) 41... Nxd5 {[%emt 0:01:59]} 42. cxd6 {[%emt 0:01:57]} ({Worse is} 42. Rxf5+ Ke6 43. Rh5 dxc5 $17) 42... Ke6 {[%emt 0:00:04] [#]} 43. d7 $1 {[%emt 0:14:30]} Rb8 {[%emt 0:00:25]} 44. Bd4 {[%emt 0:01:29]} Rd8 $2 {[%emt 0:01:18][%mdl 8192]} (44... Rb3+ $16 {keeps fighting.} 45. Kf2 Kxd7) 45. h4 $18 {[%emt 0:00:08]} Ne7 {[%emt 0:01:50]} 46. Rg7 $2 {[%emt 0:00:36]} (46. h5 $18 {Hoping for h6.} Rxd7 47. Be5) 46... Nc6 $2 {[%emt 0:05:54]} (46... Rxd7 $16 47. Bc5 Nc6 48. Rg6+ Kd5) 47. Bc3 {[%emt 0:03:56]} Ra8 {[%emt 0:01:39]} (47... Nb8 $142 48. h5 Nxd7) 48. Ke3 $18 {[%emt 0:01:30]} Ra2 {[%emt 0:01:10]} 49. h5 {[%emt 0:01:21]} Rh2 {[%emt 0:00:32] [#]} 50. Ba5 $2 {[%emt 0:01:06]} (50. Rh7 $1 $18 {[%mdl 512] and the rest is easy.} Rh1 (50... Ra2 51. h6) 51. Kd2) 50... Rh3+ $2 {[%emt 0:01:14][%mdl 8192]} (50... Nxa5 $16 51. d8=N+ (51. d8=B Nc6 $11) (51. d8=Q Nc4+ 52. Kf3 Nd2+ $11) 51... Kd5) 51. Ke2 {[%emt 0:00:50]} 1-0

[Event "Czech Championship 2024"]
[Site "Ostrava"]
[Date "2024.04.29"]
[Round "3.1"]
[White "Neuman, Petr"]
[Black "Hrbek, Stepan"]
[Result "1/2-1/2"]
[ECO "C47"]
[WhiteElo "2429"]
[BlackElo "2407"]
[Annotator "TA"]
[PlyCount "124"]
[EventDate "2024.04.25"]
[EventType "tourn"]
[EventCountry "CZE"]
[SourceTitle "playchess.com"]
[Source "ChessBase"]
[SourceQuality "1"]
[TimeControl "40/5400+30:1800+30"]

{[%evp 27,124,0,0,-3,6,0,0,-14,-20,-3,0,0,0,-5,0,0,0,0,0,0,0,0,0,0,0,0,0,0,0,0,0,0,0,0,0,0,0,0,0,0,0,0,0,0,0,0,0,-25,0,0,0,-18,-12,-25,-25,-25,-25,-25,-25,-14,0,0,0,-26,-7,-23,0,-31,-23,-23,-23,-43,-23,-23,-23,-23,-31,-30,0,-11,0,-18,0,-8,0,0,0,-10,0,-17,-10,-10,-18,-28,0,-21,0,-35,0]} 1. e4 {[%emt 0:00:08]} e5 {[%emt 0:00:15]} 2. Nf3 {[%emt 0:00:19]} Nc6 {[%emt 0:00:12]} 3. Nc3 {[%emt 0:00:49]} Nf6 {[%emt 0:00:41]} 4. d4 {[%emt 0:00:24]} exd4 {[%emt 0:00:29]} 5. Nxd4 {[%emt 0:00:08]} Bb4 {[%emt 0:00:08]} 6. Nxc6 {[%emt 0:00:16]} bxc6 {[%emt 0:00:09]} 7. Bd3 {[%emt 0:00:07]} d5 {[%emt 0:00:38]} 8. exd5 {[%emt 0:00:14]} O-O {[%emt 0:00:12] C47: Scotch Four Knights and Four Knights with 4 g3.} 9. O-O {[%emt 0:00:12]} Bg4 {[%emt 0:00:17]} 10. Be2 {[%emt 0:04:16]} Bxe2 {[%emt 0:00:15]} 11. Nxe2 {[%emt 0:00:06]} cxd5 {[%emt 0:00:11]} 12. Bg5 {[%emt 0:02:54]} Re8 {[%emt 0:02:52]} 13. Nd4 {[%emt 0:04:36]} Bd6 {[%emt 0:02:37]} 14. Qf3 {[%emt 0:06:49]} Be5 {[%emt 0:01:03]} 15. Rad1 {[%emt 0:01:11]} Qd7 {[%emt 0:14:51]} 16. Bxf6 $146 {[%emt 0:10:12]} ({Predecessor:} 16. Nf5 Ne4 17. Bc1 Qe6 18. g3 Rad8 19. c4 c6 20. cxd5 cxd5 21. Kg2 Qf6 22. Ne3 Qxf3+ 23. Kxf3 {1-0 Voigt,M (2353)-Fruebing,S (2416) BL2-Nord 1920 2019 (9.6)}) 16... Bxf6 {[%emt 0:00:32]} 17. c3 {[%emt 0:00:19]} Rad8 {[%emt 0:15:18]} 18. b3 {[%emt 0:09:50]} Be5 {[%emt 0:17:02]} 19. g3 {[%emt 0:05:13]} g6 {[%emt 0:01:05]} 20. Rd3 {[%emt 0:02:49]} a5 {[%emt 0:11:12]} 21. Rfd1 {[%emt 0:01:52]} c6 {[%emt 0:00:09]} 22. Kg2 {[%emt 0:08:39]} h5 {[%emt 0:07:08]} 23. h4 {[%emt 0:01:57]} Bg7 {[%emt 0:01:16]} 24. a3 {[%emt 0:03:06]} c5 {[%emt 0:03:40]} 25. Ne2 {[%emt 0:03:47]} d4 {[%emt 0:00:21]} 26. cxd4 {[%emt 0:01:29]} cxd4 {[%emt 0:00:18]} 27. Nxd4 {[%emt 0:10:42]} Bxd4 {[%emt 0:00:17]} 28. Rxd4 {[%emt 0:00:04]} Qxd4 {[%emt 0:00:17]} 29. Rxd4 {[%emt 0:00:04]} Rxd4 {[%emt 0:00:07]} 30. Qc3 {[%emt 0:06:34]} Rd5 {[%emt 0:00:19]} 31. Qc6 {[%emt 0:00:10]} Ree5 {[%emt 0:06:08]} 32. Qc8+ {[%emt 0:07:55]} Kh7 {[%emt 0:00:35]} 33. Qc3 {[%emt 0:00:24]} Rc5 {[%emt 0:04:02]} 34. Qd3 {[%emt 0:01:15]} Rb5 {[%emt 0:02:55]} 35. Qc3 {[%emt 0:01:44]} Re7 {[%emt 0:01:40]} 36. Qd3 {[%emt 0:01:33]} Reb7 {[%emt 0:00:39]} 37. Qc3 {[%emt 0:00:07]} Rb8 {[%emt 0:05:25]} 38. Qc7 {[%emt 0:00:42]} R8b7 {[%emt 0:00:23]} 39. Qc3 {[%emt 0:00:05]} Rxb3 {[%emt 0:01:04]} 40. Qxa5 {[%emt 0:00:06]} R3b5 {[%emt 0:00:10]} 41. Qa6 {[%emt 0:31:15]} R7b6 {[%emt 0:32:47]} 42. Qa7 {[%emt 0:02:42]} Rf6 {[%emt 0:00:23]} 43. a4 {[%emt 0:02:14]} Rbb6 {[%emt 0:00:00]} 44. Qd7 {[%emt 0:00:00]} Ra6 {[%emt 0:00:00]} 45. Kg1 {[%emt 0:00:00]} Rf5 {[%emt 0:00:00]} 46. Kg2 {[%emt 0:00:00]} Ra8 {[%emt 0:00:00]} 47. f3 {[%emt 0:00:00]} Kg8 {[%emt 0:00:00]} 48. g4 {[%emt 0:00:00]} Rfa5 {[%emt 0:00:00]} 49. Kg3 {[%emt 0:00:00]} hxg4 {[%emt 0:00:00]} 50. fxg4 {[%emt 0:00:00]} Rxa4 {[%emt 0:00:00]} 51. h5 $1 {[%emt 0:00:00]} gxh5 {[%emt 0:00:00]} 52. gxh5 {[%emt 0:00:00]} Ra3+ {[%emt 0:00:00]} 53. Kf4 {[%emt 0:00:00]} R8a4+ {[%emt 0:00:00]} 54. Kf5 {[%emt 0:00:00]} Ra5+ {[%emt 0:00:00]} 55. Kf4 {[%emt 0:00:00]} R3a4+ {[%emt 0:00:00]} ({Of course not} 55... Rxh5 $6 56. Qg4+ Kf8 57. Qxh5 $16) 56. Kf3 {[%emt 0:00:00]} Ra3+ {[%emt 0:00:00]} 57. Kf4 {[%emt 0:00:00]} R5a4+ {[%emt 0:00:00]} ({Much worse is} 57... Rxh5 $6 58. Qg4+ Kf8 59. Qxh5 $16) 58. Kf5 {[%emt 0:00:00]} Rf3+ {[%emt 0:00:00]} 59. Kg5 $1 {[%emt 0:00:00]} Rg3+ {[%emt 0:00:00]} 60. Kf5 {[%emt 0:00:00]} Rf3+ {[%emt 0:00:19]} 61. Kg5 $1 {[%emt 0:00:00]} Rg3+ {[%emt 0:00:05]} 62. Kf5 {[%emt 0:00:00]} Rf3+ {[%emt 0:05:29]} 1/2-1/2